bitfinex-derivatives/quotes_SOLF0:USTF0_20251211
["timestamp","ask_amount","ask_price","bid_price","bid_amount"]
[1765479859207,63.1,134.75,134.71,3.18]
[1765479859404,63.1,134.78,134.71,3.18]
[1765479859606,71.6377,134.78,134.76,1.79815012]
[1765479859910,71.6377,134.78,134.71,3.04]
[1765479859911,63.1,134.78,134.71,3.04]
[1765479860218,63.1,134.78,134.77,1.79829706]
[1765479860522,63.1,134.78,134.76,0.0468179]
[1765479860710,63.1,134.78,134.77,1.79898436]
[1765479863407,63.1,134.78,134.77,4.83898436]
[1765479863615,63.1,134.78,134.77,3.04]
[1765479864003,0.05414618,134.79,134.77,3.04]
[1765479866605,0.05414618,134.79,134.77,9.718]
[1765479866806,0.05414618,134.79,134.78,3.04]
[1765479867211,63.1,134.82,134.78,3.04]
[1765479867406,69.7757,134.82,134.78,3.04]
[1765479867615,63.1,134.82,134.78,3.04]
[1765479868208,0.05668304,134.81,134.78,3.04]
[1765479869405,6.6768,134.8,134.78,3.04]
[1765479870010,0.05668304,134.81,134.78,3.04]
[1765479870715,6.73288304,134.81,134.78,3.04]
[1765479871413,8.5867,134.8,134.76,3.0868179]
[1765479871621,1.91,134.8,134.79,1.80891227]
[1765479871817,1.96668304,134.81,134.79,1.80891227]
[1765479872118,1.91,134.79,134.76,3.0868179]
[1765479872325,1.91,134.79,134.76,0.0468179]
[1765479872520,1.91,134.79,134.78,1.80929094]
[1765479873024,8.5871,134.79,134.78,1.80929094]
[1765479873215,9.24506136,134.8,134.78,1.80929094]
[1765479873418,9.24506136,134.8,134.79,1.80929094]
[1765479873621,9.24506136,134.8,134.76,0.0468179]
[1765479873817,9.24506136,134.8,134.79,1.80831539]
[1765479875325,0.05668304,134.81,134.79,3.04]
[1765479875825,1.96668304,134.81,134.77,3.04]
[1765479876419,0.05668304,134.81,134.77,3.04]
[1765479876816,0.05668304,134.81,134.79,3.04]
[1765479880027,1.96668304,134.81,134.76,3.0868179]
[1765479880232,1.96668304,134.81,134.79,1.8104203]
[1765479880425,1.96668304,134.81,134.76,3.0868179]
[1765479880931,1.96668304,134.81,134.8,1.81076099]
[1765479881431,8.64328304,134.81,134.79,0.04808176]
[1765479881731,1.91,134.8,134.79,0.04808176]
[1765479881922,9.24506136,134.8,134.79,0.04808176]
[1765479883127,1.91,134.77,134.73,3.04]
[1765479883321,9.24506136,134.77,134.76,1.81366676]
[1765479884020,7.33506136,134.77,134.76,1.81366676]
[1765479884333,63.13402774,134.78,134.76,1.81366676]
[1765479884726,3.08324931,134.77,134.76,1.81366676]
[1765479885917,4.99324931,134.77,134.76,1.81366676]
[1765479886137,1.91,134.76,134.75,0.05269675]
[1765479886338,1.91,134.76,134.71,3.04]
[1765479886530,3.08324931,134.73,134.71,3.04]
[1765479886735,1.91,134.76,134.71,3.04]
[1765479887034,8.5887,134.76,134.71,3.04]
[1765479887224,8.5887,134.76,134.75,1.81493958]
[1765479888124,1.91,134.73,134.72,0.0548305]
[1765479890326,8.5901,134.73,134.72,0.0548305]
[1765479890528,65.01,134.73,134.68,3.04]
[1765479890731,65.01,134.73,134.72,1.81539791]
[1765479891129,71.6901,134.73,134.72,1.81539791]
[1765479892628,71.6901,134.73,134.71,0.04730151]
[1765479892831,1.92,134.72,134.71,0.04730151]
[1765479893237,1.92,134.69,134.65,3.22]
[1765479894238,1.92,134.69,134.61,6.6859]
[1765479894435,1.92,134.68,134.67,1.81621293]
[1765479894743,79.09412024,134.69,134.67,1.81621293]
[1765479895635,1.92,134.68,134.67,1.81621293]
[1765479896939,1.92,134.66,134.64,0.04841553]
[1765479897132,65.02,134.65,134.64,0.04841553]
[1765479897844,1.92,134.63,134.58,3.22]
[1765479898069,1.92,134.63,134.6,1.81638984]
[1765479898343,1.92,134.62,134.61,1.81638984]
[1765479898531,1.92,134.62,134.55,3.22]
[1765479898732,0.04831811,134.6,134.57,3.26805825]
[1765479901136,1.96831811,134.6,134.57,0.04805825]
[1765479901343,1.92,134.59,134.57,6.644e-05]
[1765479901539,104.0539,134.55,134.5,3.22]
[1765479901744,6.6908,134.52,134.5,3.22]
[1765479901943,6.6908,134.52,134.47,3.22]
[1765479902134,169.0939,134.55,134.47,3.22]
[1765479902535,1.92,134.54,134.53,1.8126545]
[1765479902737,8.6099,134.54,134.53,1.8126545]
[1765479903140,8.6099,134.54,134.53,0.0026545]
[1765479903447,0.11,134.51,134.5,0.04895662]
[1765479903640,63.25,134.51,134.44,3.22]
[1765479903837,63.25,134.51,134.37,167.2076]
[1765479903838,111.56320838,134.48,134.39,3.22]
[1765479904040,7.45350838,134.48,134.4,3.22]
[1765479904242,63.14,134.47,134.42,3.22]
[1765479904638,0.05507971,134.46,134.45,3.22]
[1765479904947,63.14,134.54,134.48,3.22]
[1765479905148,63.25,134.54,134.53,1.80500969]
[1765479905541,63.25,134.54,134.48,3.22]
[1765479905542,63.14,134.54,134.48,3.22]
[1765479905742,63.25,134.54,134.52,1.80321001]
[1765479905944,63.2985993,134.54,134.52,1.80321001]
[1765479906137,0.11,134.53,134.5,0.04803295]
[1765479906844,0.11,134.51,134.5,0.04803295]
[1765479907240,7.45350838,134.51,134.5,0.04803295]
[1765479907438,104.1782,134.47,134.39,3.22]
[1765479907645,104.1782,134.47,134.44,1.80200097]
[1765479907646,63.22,134.46,134.44,1.80200097]
[1765479907843,0.06,134.45,134.39,3.22]
[1765479908043,0.06,134.45,134.44,1.80209857]
[1765479908439,0.06,134.44,134.43,0.05390467]
[1765479909444,0.06,134.44,134.43,1.84993837]
[1765479909746,0.06,134.44,134.43,0.05390467]
[1765479910543,6.6955,134.42,134.36,3.22]
[1765479910854,63.24,134.41,134.36,3.22]
[1765479911153,69.9362,134.41,134.4,1.79522994]
[1765479912052,6.6969,134.4,134.33,3.22]
[1765479912438,0.05446872,134.38,134.33,3.22]
[1765479913357,0.00446872,134.38,134.35,3.22]
[1765479913654,63.2,134.43,134.38,3.22]
[1765479913856,63.33,134.45,134.41,5.00765574]
[1765479914150,0.11,134.44,134.38,3.22]
[1765479914551,0.05063313,134.42,134.4,0.04765012]
[1765479915046,0.05063313,134.42,134.41,1.78614267]
[1765479915250,0.05063313,134.42,134.4,3.26765012]
[1765479916554,0.05063313,134.42,134.4,3.20765012]
[1765479916853,0.05063313,134.42,134.4,0.04765012]
[1765479917048,0.05063313,134.42,134.41,1.78396174]
[1765479917653,0.05063313,134.42,134.4,0.04765012]
[1765479918244,6.74633313,134.42,134.4,0.04765012]
[1765479918451,104.1773,134.39,134.27,398.2673]
[1765479918656,104.1773,134.39,134.31,3.16]
[1765479918657,0.07,134.35,134.31,3.16]
[1765479918850,6.6988,134.36,134.31,3.16]
[1765479919153,63.22,134.38,134.31,3.16]
[1765479919550,63.22,134.38,134.35,1.78367268]
[1765479919753,0.05315029,134.38,134.37,3.32]
[1765479920150,0.05315029,134.38,134.32,6.7004]
[1765479920360,0.05315029,134.38,134.33,3.32]
[1765479920852,0.05315029,134.38,134.34,3.32]
[1765479921554,0.05315029,134.38,134.31,104.2342]
[1765479921555,7.34350838,134.43,134.35,3.32]
[1765479921756,63.24,134.42,134.4,5.10123393]
[1765479921955,63.24,134.42,134.37,3.32]
[1765479922148,63.24,134.42,134.4,1.7826805]
[1765479922867,63.29247451,134.42,134.4,1.83933591]
[1765479923162,63.29247451,134.42,134.4,0.05665541]
[1765479923359,63.29247451,134.42,134.4,1.84057901]
[1765479923657,63.29247451,134.42,134.4,0.05665541]
[1765479923851,6.6961,134.41,134.4,1.84050127]
[1765479924053,6.6961,134.41,134.4,0.05665541]
[1765479924255,6.6961,134.41,134.4,1.84024849]
[1765479924451,6.6972,134.39,134.33,3.32]
[1765479925063,6.697,134.39,134.37,1.78522199]
[1765479925362,0.12,134.41,134.38,1.78522199]
[1765479925564,0.12,134.4,134.38,1.78522199]
[1765479925864,0.12,134.39,134.38,1.78522199]
[1765479926164,0.12,134.4,134.33,3.32]
[1765479926357,0.04911552,134.38,134.37,1.78862658]
[1765479926550,6.86691552,134.38,134.37,1.78862658]
[1765479926751,63.30911552,134.38,134.33,3.32]
[1765479926954,0.04911552,134.38,134.37,1.78885423]
[1765479927159,0.04911552,134.38,134.33,3.32]
[1765479927359,0.04911552,134.38,134.37,1.78972043]
[1765479927561,0.16911552,134.38,134.33,3.32]
[1765479927758,0.12,134.37,134.36,1.79032626]
[1765479928262,0.04911552,134.38,134.36,1.79032626]
[1765479928462,0.16911552,134.38,134.36,1.79032626]
[1765479928862,6.6984,134.37,134.36,1.79032626]
[1765479930462,6.6984,134.37,134.35,1.79032626]
[1765479930655,0.04911552,134.38,134.36,5.11032626]
[1765479930859,0.04911552,134.38,134.28,104.2566]
[1765479930860,0.05214545,134.38,134.37,5.11032626]
[1765479931061,63.30759172,134.39,134.37,3.32]
[1765479931268,63.30759172,134.39,134.38,1.7925927]
[1765479933570,0.04759172,134.39,134.38,3.32]
[1765479933765,0.04759172,134.39,134.34,3.32]
[1765479934070,6.75033273,134.38,134.34,3.32]
[1765479935570,63.45283273,134.38,134.37,1.80309905]
[1765479935759,63.45283273,134.38,134.36,1.80309905]
[1765479936168,70.15033273,134.38,134.36,1.80309905]
[1765479936376,0.12,134.37,134.35,9.905e-05]
[1765479936670,104.3167,134.37,134.3,3.32]
[1765479936872,0.05307271,134.35,134.3,3.32]
[1765479937071,6.6999,134.34,134.3,3.32]
[1765479937469,6.7001,134.33,134.3,3.32]
[1765479938272,104.2395,134.31,134.26,3.32]
[1765479938575,104.4056,134.25,134.16,3.32]
[1765479938876,0.0525184,134.22,134.17,3.32]
[1765479939072,0.0525184,134.22,134.21,1.81432583]
[1765479939275,0.1725184,134.22,134.2,1.81432583]
[1765479939471,0.1725184,134.22,134.17,3.32]
[1765479939472,0.0525184,134.22,134.21,5.13432583]
[1765479939675,63.28,134.26,134.22,3.32]
[1765479939873,6.7017,134.3,134.25,5.13280996]
[1765479940075,63.45,134.29,134.26,1.81280996]
[1765479940268,63.45,134.29,134.22,3.32]
[1765479940469,63.45,134.29,134.26,1.81428734]
[1765479940778,63.50676981,134.29,134.27,1.81428734]
[1765479940977,63.50676981,134.29,134.26,0.05240559]
[1765479941179,63.50676981,134.29,134.27,1.81366636]
[1765479941874,0.05676981,134.29,134.28,1.81366636]
[1765479942178,63.35676981,134.29,134.27,3.32]
[1765479943776,109.61919497,134.36,134.29,3.32]
[1765479943979,109.61919497,134.36,134.32,1.81799844]
[1765479943980,63.3,134.35,134.32,1.81799844]
[1765479944378,9.8797,134.34,134.32,1.81799844]
[1765479944574,3.18,134.33,134.32,1.81799844]
[1765479945677,6.7005,134.32,134.31,0.04848324]
[1765479945874,9.8805,134.32,134.31,0.04848324]
[1765479946067,3.18,134.32,134.26,3.32]
[1765479946281,66.48,134.31,134.26,3.32]
[1765479946481,73.1814,134.31,134.26,3.32]
[1765479946681,73.1814,134.31,134.3,1.82348636]
[1765479946983,9.8819,134.3,134.23,3.32]
[1765479947180,3.2276435,134.28,134.25,0.05215239]
[1765479947571,0.0476435,134.28,134.25,0.05215239]
[1765479947768,0.0476435,134.28,134.25,3.37215239]
[1765479950078,3.2876435,134.28,134.27,1.82662221]
[1765479950476,3.2876435,134.28,134.26,1.82662221]
[1765479950874,9.9903435,134.28,134.26,1.82662221]
[1765479951476,66.54,134.27,134.26,1.82662221]
[1765479951877,3.24,134.26,134.25,0.05215239]
[1765479952479,63.3,134.27,134.25,3.14215239]
[1765479952683,63.3,134.27,134.26,1.83059472]
[1765479952998,63.3,134.27,134.25,3.14215239]
[1765479952999,63.3,134.27,134.25,0.05215239]
[1765479955380,63.3,134.27,134.26,1.83012341]
[1765479956482,3.24,134.26,134.25,0.00215239]
[1765479956791,3.24,134.26,134.18,3.09]
[1765479956792,119.09568459,134.26,134.18,3.09]
[1765479956988,3.24,134.24,134.18,3.09]
[1765479957185,107.5484,134.22,134.15,3.09]
[1765479957491,9.9465,134.2,134.19,1.83166196]
[1765479957689,6.75786538,134.2,134.19,1.83166196]
[1765479958303,0.05136538,134.2,134.19,1.83166196]
[1765479958504,0.05136538,134.2,134.17,0.0235371]
[1765479958505,0.05136538,134.2,134.17,3.1135371]
[1765479958805,0.05136538,134.2,134.17,9.8214371]
[1765479959003,0.05136538,134.2,134.18,3.09]
[1765479960303,3.24,134.27,134.21,3.09]
[1765479960504,66.56,134.27,134.24,1.82806231]
[1765479960812,66.56,134.27,134.25,1.82806231]
[1765479960813,3.24,134.26,134.25,1.82806231]
[1765479961308,3.24,134.26,134.24,0.05504604]
[1765479961498,63.37423668,134.27,134.25,1.82792852]
[1765479961802,66.61423668,134.27,134.24,0.05504604]
[1765479961997,3.24,134.26,134.25,1.82804993]
[1765479962198,1.62,134.24,134.14,3.09]
[1765479962394,1.62,134.21,134.14,3.09]
[1765479962594,64.96,134.2,134.14,3.09]
[1765479963203,64.96,134.2,134.18,1.8315124]
[1765479963409,65.01168015,134.2,134.18,1.8315124]
[1765479963707,63.39168015,134.2,134.19,1.8315124]
[1765479963999,1.62,134.23,134.19,1.8315124]
[1765479964000,63.34,134.25,134.19,3.09]
[1765479964206,63.34,134.25,134.22,4.91856707]
[1765479964504,63.34,134.25,134.24,1.82856707]
[1765479964697,63.34,134.25,134.22,3.09]
[1765479964898,63.34,134.25,134.24,1.82739133]
[1765479965499,63.34,134.25,134.23,3.13746247]
[1765479965700,0.05036121,134.26,134.23,3.13746247]
[1765479966208,0.05036121,134.26,134.25,9.794]
[1765479966404,1.67,134.33,134.25,3.09]
[1765479966596,1.67,134.31,134.28,1.82627195]
[1765479967005,1.67,134.31,134.21,3.09]
[1765479967202,1.67,134.31,134.27,1.82685183]
[1765479967410,11.57378459,134.29,134.19,3.09]
[1765479967605,11.57378459,134.26,134.19,3.09]
[1765479967805,63.34,134.27,134.19,3.09]
[1765479968610,0.05371354,134.24,134.22,0.05486774]
[1765479968806,0.05371354,134.24,134.23,1.83005183]
[1765479969197,0.05371354,134.24,134.22,0.05486774]
[1765479969401,0.05371354,134.24,134.15,3.09]
[1765479969607,11.57378459,134.23,134.19,1.83148295]
[1765479970011,18.27898459,134.23,134.19,1.83148295]
[1765479970600,0.05491136,134.22,134.19,1.83148295]
[1765479971112,63.34,134.21,134.19,1.83148295]
[1765479971313,63.34,134.21,134.15,3.09]
[1765479971612,11.57378459,134.2,134.17,1.83235215]
[1765479971808,11.6265612,134.2,134.17,1.83235215]
[1765479972212,0.05277661,134.2,134.17,1.83235215]
[1765479973214,0.05277661,134.2,134.19,1.83235215]
[1765479973416,0.05277661,134.2,134.17,3.09]
[1765479973618,0.05277661,134.2,134.19,1.83110764]
[1765479973810,0.05277661,134.2,134.17,3.09]
[1765479974717,0.05277661,134.2,134.18,3.28]
[1765479977621,0.05277661,134.2,134.13,3.28]
[1765479977920,0.05277661,134.2,134.18,1.83358253]
[1765479978125,6.75927661,134.2,134.18,1.83358253]
[1765479978428,104.37737661,134.2,134.13,3.28]
[1765479978627,104.37737661,134.2,134.16,1.83554446]
[1765479978824,6.7075,134.18,134.16,1.83554446]
[1765479979030,104.3475,134.17,134.1,3.1]
[1765479979222,0.05014843,134.15,134.1,3.1]
[1765479979620,0.05014843,134.15,134.08,3.8853402]
[1765479979929,0.05014843,134.15,134.08,6.9853402]
[1765479980127,0.05014843,134.15,134.12,1.83940069]
[1765479980318,6.7099,134.14,134.12,1.83940069]
[1765479980522,0.05014843,134.15,134.12,1.83940069]
[1765479980719,0.05014843,134.15,134.13,4.93940069]
[1765479980922,0.05014843,134.15,134.14,1.83940069]
[1765479981124,0.05014843,134.15,134.13,3.1]
[1765479981321,0.05014843,134.15,134.14,1.83943927]
[1765479981627,0.05014843,134.15,134.12,1.83943927]
[1765479981833,0.05014843,134.15,134.14,1.83943927]
[1765479982130,0.05014843,134.15,134.12,3.1]
[1765479982430,0.05014843,134.15,134.14,1.8388246]
[1765479982626,0.05014843,134.15,134.14,3.1]
[1765479984034,0.05014843,134.15,134.08,108.2968402]
[1765479984035,0.05014843,134.15,134.12,3.1]
[1765479984341,0.05014843,134.15,134.14,1.83934281]
[1765479985137,6.75924843,134.15,134.14,1.83934281]
[1765479986033,0.05014843,134.15,134.14,1.83934281]
[1765479987631,6.75914843,134.15,134.11,3.1]
[1765479987835,6.75914843,134.15,134.14,1.83840345]
[1765479988427,0.05014843,134.15,134.14,4.93840345]
[1765479988735,63.38,134.18,134.14,3.1]
[1765479988936,63.38,134.18,134.17,1.83758262]
[1765479990138,63.38,134.18,134.17,1.83951583]
[1765479990434,63.38,134.18,134.11,3.1]
[1765479990826,6.709,134.16,134.11,3.1]
[1765479991034,70.78934491,134.18,134.11,3.1]
[1765479991230,0.04966319,134.16,134.14,3.1]
[1765479992040,6.75826319,134.16,134.14,3.1]
[1765479992838,6.709,134.15,134.1,3.1]
[1765479993542,6.709,134.15,134.11,3.1]
[1765479993836,104.40816319,134.16,134.14,4.664e-05]
[1765479994043,167.7498,134.15,134.08,3.8853402]
[1765479994246,0.05522997,134.13,134.09,3.1]
[1765479994437,6.7111,134.11,134.08,6.9853402]
[1765479994934,6.7111,134.11,134.09,3.1]
[1765479995332,6.7111,134.11,134.08,3.8853402]
[1765479995531,6.7111,134.11,134.08,6.9853402]
[1765479995732,6.7111,134.11,134.1,1.84362094]
[1765479997044,7.46457488,134.13,134.1,1.84362094]
[1765479997337,111.84667488,134.13,134.1,1.84362094]
[1765479997545,6.7115,134.1,134.08,3.72147208]
[1765479997842,70.78934491,134.09,134.02,3.1]
[1765479998041,0.05464884,134.07,134.06,1.84357071]
[1765479998839,0.05464884,134.07,134.06,4.94357071]
[1765479999033,0.05464884,134.07,134.06,3.1]
[1765479999432,0.05464884,134.07,134.02,104.4612]
[1765479999433,0.05464884,134.07,134.02,3.1]
[1765480000030,0.05464884,134.07,134.04,3.1]
[1765480000329,0.05464884,134.07,134.06,1.8424922]
[1765480000534,0.05464884,134.07,133.98,3.1]
[1765480000837,70.80934491,134.06,134.04,1.8427594]
[1765480001236,77.57496474,134.06,134.04,1.8427594]
[1765480001534,63.45191983,134.06,134.04,1.8427594]
[1765480001941,63.45191983,134.06,134.03,1.8427594]
[1765480002141,63.45191983,134.06,134.04,1.84194126]
[1765480002538,0.05191983,134.06,134.05,3.1]
[1765480002728,0.05582233,134.07,134.05,3.1]
[1765480003238,0.05582233,134.07,134.01,3.1]
[1765480003437,0.05092033,134.05,134.04,1.84021752]
[1765480003642,7.40934491,134.09,134.01,3.1]
[1765480003843,0.05714349,134.06,134.05,1.84011865]
[1765480004248,6.714,134.05,134.04,1.84011865]
[1765480004444,0.05714349,134.06,134.01,3.1]
[1765480004741,0.05714349,134.06,133.98,3.1]
[1765480004742,63.4,134.05,133.98,3.1]
[1765480004947,6.77107373,134.03,133.98,3.1]
[1765480005946,6.77107373,134.03,134.02,1.83872102]
[1765480006339,63.4,134.05,134.02,1.83872102]
[1765480006340,63.4,134.05,134.03,3.1]
[1765480006744,63.4,134.05,134.0,3.1]
[1765480006947,70.1141,134.05,134.04,1.83791589]
[1765480007838,63.4,134.05,134.04,1.83791589]
[1765480008642,70.1144,134.05,134.03,0.04932119]
[1765480008947,70.1144,134.05,134.04,1.83692194]
[1765480009856,63.4,134.05,134.04,5.20692194]
[1765480010147,63.4,134.05,134.03,3.41932119]
[1765480010640,63.42,134.1,134.04,3.37]
[1765480010844,63.42,134.1,134.07,1.83661454]
[1765480011045,63.42,134.1,134.08,1.83661454]
[1765480011252,63.42,134.1,134.04,3.37]
[1765480011453,63.42,134.1,134.07,1.83775695]
[1765480011655,63.47647718,134.1,134.07,1.89393672]
[1765480011952,63.47647718,134.1,134.07,0.05617977]
[1765480012151,63.47647718,134.1,134.07,1.89396752]
[1765480012346,63.47647718,134.1,134.07,0.05617977]
[1765480012555,63.47647718,134.1,134.07,1.89536192]
[1765480012853,63.47647718,134.1,134.07,0.05617977]
[1765480013050,63.47647718,134.1,134.07,1.895377]
[1765480013251,6.712,134.09,134.07,0.05617977]
[1765480013453,14.12134491,134.09,134.07,1.89626887]
[1765480013648,14.12134491,134.09,134.07,0.05617977]
[1765480014359,6.712,134.09,134.07,0.05617977]
[1765480015255,70.132,134.09,134.07,0.05617977]
[1765480016048,77.54134491,134.09,134.07,0.05617977]
[1765480016649,70.82934491,134.09,134.07,0.05617977]
[1765480016849,70.82934491,134.09,133.99,3.37]
[1765480016850,104.4228,134.08,133.99,3.37]
[1765480017054,104.4228,134.08,134.04,1.84164994]
[1765480017764,0.05719152,134.07,134.05,0.05283875]
[1765480018366,14.12334491,134.06,134.05,0.05283875]
[1765480019453,134.08244491,134.06,133.99,3.37]
[1765480019654,63.42,134.05,134.01,1.84238676]
[1765480020159,63.42,134.05,134.02,3.37]
[1765480020360,0.05070595,134.05,134.04,3.37]
[1765480020559,0.0503573,134.06,134.04,3.37]
[1765480020858,0.0503573,134.06,134.05,5.21282594]
[1765480021062,63.42,134.08,134.06,3.37]
[1765480021261,5.81049681,134.15,134.07,5.21252263]
[1765480021465,63.42,134.14,134.08,5.21252263]
[1765480021764,63.42,134.14,134.12,5.21252263]
[1765480021952,63.42,134.14,134.13,1.84252263]
[1765480022151,63.42,134.14,134.13,5.21252263]
[1765480022357,0.05317657,134.15,134.14,3.37]
[1765480023563,0.05317657,134.15,134.12,3.4178791]
[1765480023774,0.05317657,134.15,134.13,3.37]
[1765480024456,63.42,134.18,134.15,6.7089]
[1765480024658,63.42,134.18,134.17,1.84162484]
[1765480025063,63.42,134.18,134.13,3.37]
[1765480025261,63.42,134.18,134.16,1.8418959]
[1765480025470,63.4727487,134.18,134.16,1.89013034]
[1765480025668,63.4727487,134.18,134.16,0.04823444]
[1765480025870,70.1804487,134.18,134.16,1.89021459]
[1765480026065,70.1804487,134.18,134.16,0.04823444]
[1765480026265,70.1804487,134.18,134.16,1.89021459]
[1765480026463,7.40934491,134.17,134.16,0.04823444]
[1765480027871,0.0527487,134.18,134.16,3.41823444]
[1765480028067,0.0527487,134.18,134.16,0.04823444]
[1765480028765,7.40934491,134.17,134.16,0.04823444]
[1765480031563,0.0527487,134.18,134.16,0.04823444]
[1765480031769,0.0527487,134.18,134.16,3.41823444]
[1765480032169,0.0527487,134.18,134.17,1.84136247]
[1765480032368,0.0527487,134.18,134.16,3.41823444]
[1765480033568,0.0527487,134.18,134.17,1.84057751]
[1765480034169,0.0527487,134.18,134.16,0.04823444]
[1765480034468,7.40934491,134.17,134.09,3.29]
[1765480035174,7.40934491,134.17,134.13,1.84230044]
[1765480035375,0.04733504,134.16,134.14,0.05214668]
[1765480035579,63.4,134.15,134.14,0.05214668]
[1765480037175,63.4,134.15,134.08,3.29]
[1765480037475,63.4,134.15,134.13,1.84312355]
[1765480038179,63.45099716,134.15,134.13,1.84312355]
[1765480039377,0.05099716,134.15,134.13,5.04312355]
[1765480039579,0.05099716,134.15,134.14,1.84312355]
[1765480044074,0.05099716,134.15,134.14,5.04312355]
[1765480044269,0.05099716,134.15,134.09,104.4061]
[1765480044270,63.4,134.18,134.15,3.2]
[1765480044470,63.4,134.18,134.16,1.84125567]
[1765480044866,63.4,134.18,134.16,5.04125567]
[1765480045180,63.4,134.18,134.16,3.2]
[1765480045478,70.16404144,134.18,134.16,0.04726076]
[1765480045772,63.45644144,134.18,134.16,1.88740833]
[1765480045979,63.45644144,134.18,134.17,1.84014757]
[1765480046179,63.45644144,134.18,134.16,3.24726076]
[1765480046385,63.45644144,134.18,134.17,5.03989475]
[1765480046575,63.45644144,134.18,134.16,0.04726076]
[1765480046775,63.45644144,134.18,134.17,1.83950789]
[1765480047976,6.708,134.17,134.16,0.04726076]
[1765480048381,63.45644144,134.18,134.16,0.04726076]
[1765480048974,63.45644144,134.18,134.17,1.83862461]
[1765480049174,63.45644144,134.18,134.17,5.03862461]
[1765480049380,63.45644144,134.18,134.17,3.2]
[1765480051076,70.16404144,134.18,134.16,0.04726076]
[1765480051976,0.05644144,134.18,134.17,1.83977559]
[1765480052382,0.05644144,134.18,134.16,0.04726076]
[1765480052575,6.708,134.17,134.16,0.04726076]
[1765480055785,6.708,134.17,134.1,3.2]
[1765480055786,6.7092,134.14,134.1,3.2]
[1765480055982,6.7092,134.14,134.13,1.84306359]
[1765480056687,63.43551568,134.15,134.14,3.2]
[1765480056890,63.43551568,134.15,134.11,3.2]
[1765480057181,63.43551568,134.15,134.14,1.8445091]
[1765480057488,63.43551568,134.15,134.13,3.2]
[1765480057688,63.43551568,134.15,134.14,1.84473684]
[1765480058885,63.43551568,134.15,134.13,3.2]
[1765480060285,63.43551568,134.15,134.14,1.8462606]
[1765480060586,74.9929205,134.15,134.08,3.2]
[1765480060788,0.04770272,134.13,134.12,1.84711817]
[1765480060989,0.04770272,134.13,134.12,3.2]
[1765480061886,63.38,134.15,134.12,3.2]
[1765480062085,6.707,134.18,134.13,3.2]
[1765480062288,6.707,134.18,134.17,3.2]
[1765480062490,6.707,134.18,134.17,5.04667858]
[1765480062689,63.38,134.2,134.17,3.2]
[1765480062690,70.0861,134.2,134.17,3.2]
[1765480062888,70.13979845,134.2,134.18,1.84805129]
[1765480064186,63.43369845,134.2,134.19,1.84805129]
[1765480064492,63.43369845,134.2,134.19,5.04805129]
[1765480064682,63.43369845,134.2,134.19,3.2]
[1765480065789,0.05369845,134.2,134.19,3.2]
[1765480067589,63.38,134.23,134.19,3.2]
[1765480067794,63.38,134.23,134.22,1.84857114]
[1765480068098,63.38,134.23,134.22,5.04857114]
[1765480068298,63.38,134.23,134.22,3.2]
[1765480070196,63.38,134.23,134.21,0.0508515]
[1765480070197,70.0844,134.23,134.21,0.0508515]
[1765480070699,70.0844,134.23,134.15,9.898]
[1765480070700,104.3009,134.22,134.15,3.19]
[1765480070898,167.6763,134.23,134.15,3.19]
[1765480070899,172.96887587,134.23,134.19,1.84883229]
[1765480071201,167.6763,134.23,134.19,1.84883229]
[1765480071703,0.04856791,134.22,134.2,0.04824448]
[1765480072000,6.7053,134.21,134.2,0.04824448]
[1765480073098,0.04856791,134.22,134.15,3.19]
[1765480073298,11.6129205,134.18,134.08,3.19]
[1765480073601,63.38,134.17,134.08,3.19]
[1765480074097,63.38,134.17,134.09,3.19]
[1765480074302,0.04904608,134.14,134.1,3.19]
[1765480074699,0.04904608,134.14,134.09,3.19]
[1765480076198,0.04904608,134.14,134.09,9.9012]
[1765480076505,0.04904608,134.14,134.1,3.19]